fUSD/lending_fUSD_20251225
["ID","MTS","AMOUNT","RATE_DAILY","PERIOD"]
[399762986,1766659841934,-150.0,0.00015665,2]
[399762988,1766659841944,-150.0,0.00015667,2]
[399762989,1766659841954,-150.0,0.00015674,2]
[399762990,1766659841964,-150.0,0.00015676,2]
[399762991,1766659841974,-194.50106884,0.00015682,2]
[399762992,1766659841984,-156.92142475,0.00015682,2]
[399762993,1766659841994,-263.8246358,0.00015682,2]
[399762994,1766659842003,-150.0,0.00015684,2]
[399762995,1766659842013,-150.0,0.00015687,2]
[399762996,1766659842023,-150.0,0.00015687,2]
[399762998,1766659842034,-194.50106884,0.00015699,2]
[399762999,1766659842045,-156.92142475,0.00015699,2]
[399763000,1766659842055,-263.8246358,0.00015699,2]
[399763001,1766659842064,-150.0,0.00015699,2]
[399763002,1766659842075,-150.0,0.000157,2]
[399763003,1766659842084,-150.0,0.00015702,2]
[399763004,1766659842095,-150.0,0.00015703,2]
[399763005,1766659842104,-150.0,0.00015707,2]
[399763006,1766659842114,-150.0,0.00015712,2]
[399763008,1766659842125,-194.50106884,0.00015717,2]
[399763009,1766659842135,-156.92142475,0.00015717,2]
[399763010,1766659842145,-263.8246358,0.00015717,2]
[399763011,1766659842155,-150.0,0.00015722,2]
[399763012,1766659842166,-150.0,0.00015724,2]
[399763013,1766659842176,-150.0,0.00015727,2]
[399763014,1766659842187,-150.0,0.00015731,2]
[399763015,1766659842197,-194.50106884,0.00015734,2]
[399763016,1766659842207,-156.92142475,0.00015734,2]
[399763018,1766659842217,-263.8246358,0.00015734,2]
[399763019,1766659842227,-150.0,0.00015741,2]
[399763020,1766659842237,-150.0,0.00015743,2]
[399763021,1766659842247,-150.0,0.00015747,2]
[399763022,1766659842257,-150.0,0.00015749,2]
[399763023,1766659842267,-194.50106884,0.00015751,2]
[399763024,1766659842278,-156.92142475,0.00015751,2]
[399763025,1766659842289,-263.8246358,0.00015751,2]
[399763026,1766659842299,-150.0,0.00015751,2]
[399763028,1766659842310,-150.0,0.00015751,2]
[399763029,1766659842319,-150.0,0.0001576,2]
[399763030,1766659842330,-691.39774486,0.0001576,2]
[399763031,1766659842341,-359.76179104,0.0001576,2]
[399763032,1766659842350,-150.0,0.00015767,2]
[399763034,1766659842360,-194.50106884,0.00015768,2]
[399763036,1766659842371,-156.92142475,0.00015768,2]
[399763038,1766659842382,-263.8246358,0.00015768,2]
[399763041,1766659842392,-150.0,0.00015773,2]
[399763043,1766659842402,-150.0,0.00015778,2]
[399763044,1766659842412,-150.0,0.00015785,2]
[399763045,1766659842422,-194.50106884,0.00015785,2]
[399763046,1766659842433,-156.92142475,0.00015785,2]
[399763047,1766659842443,-263.8246358,0.00015785,2]
[399763048,1766659842453,-767.7842514,0.00015786,2]
[399763049,1766659842463,-150.0,0.00015787,2]
[399763050,1766659842473,-150.0,0.00015787,2]
[399763051,1766659842483,-150.0,0.00015797,2]
[399763053,1766659842493,-150.0,0.00015797,2]
[399763054,1766659842503,-1000.0,0.000158,2]
[399763055,1766659842514,-194.50106884,0.00015802,2]
[399763056,1766659842524,-156.92142475,0.00015802,2]
[399763057,1766659842534,-263.8246358,0.00015802,2]
[399763058,1766659842544,-150.0,0.00015802,2]
[399763060,1766659842554,-150.0,0.00015805,2]
[399763062,1766659842564,-150.0,0.00015807,2]
[399763065,1766659842574,-150.0,0.00015816,2]
[399763067,1766659842584,-194.50106884,0.0001582,2]
[399763068,1766659842594,-156.92142475,0.0001582,2]
[399763069,1766659842604,-263.8246358,0.0001582,2]
[399763070,1766659842617,-150.0,0.00015822,2]
[399763071,1766659842627,-150.0,0.00015826,2]
[399763072,1766659842637,-150.0,0.00015827,2]
[399763073,1766659842647,-150.0,0.00015828,2]
[399763074,1766659842659,-150.0,0.00015835,2]
[399763076,1766659842669,-194.50106884,0.00015837,2]
[399763077,1766659842679,-156.92142475,0.00015837,2]
[399763078,1766659842690,-263.8246358,0.00015837,2]
[399763079,1766659842700,-992.4445257,0.00015839,2]
[399763080,1766659842710,-150.0,0.00015846,2]
[399763081,1766659842720,-150.0,0.00015847,2]
[399763082,1766659842731,-194.50106884,0.00015854,2]
[399763083,1766659842741,-156.92142475,0.00015854,2]
[399763084,1766659842751,-263.8246358,0.00015854,2]
[399763086,1766659842761,-150.0,0.00015854,2]
[399763087,1766659842771,-150.0,0.00015854,2]
[399763088,1766659842781,-150.0,0.00015854,2]
[399763089,1766659842791,-150.0,0.00015867,2]
[399763090,1766659842801,-150.0,0.00015868,2]
[399763091,1766659842811,-200.18,0.0001587,2]
[399763092,1766659842822,-150.0,0.0001587,2]
[399763093,1766659842832,-194.50106884,0.00015871,2]
[399763094,1766659842842,-156.92142475,0.00015871,2]
[399763096,1766659842853,-263.8246358,0.00015871,2]
[399763097,1766659842862,-150.0,0.00015873,2]
[399763098,1766659842872,-150.0,0.00015878,2]
[399763099,1766659842883,-150.0,0.00015887,2]
[399763100,1766659842892,-150.0,0.00015887,2]
[399763101,1766659842903,-194.50106884,0.00015888,2]
[399763102,1766659842913,-156.92142475,0.00015888,2]
[399763103,1766659842924,-263.8246358,0.00015888,2]
[399763105,1766659842935,-150.0,0.00015892,2]
[399763106,1766659842994,-150.0,0.00015894,2]
[399763107,1766659843004,-194.50106884,0.00015905,2]
[399763108,1766659843014,-156.92142475,0.00015905,2]
[399763109,1766659843024,-263.8246358,0.00015905,2]
[399763110,1766659843034,-150.0,0.00015905,2]
[399763112,1766659843044,-150.0,0.00015905,2]
[399763113,1766659843054,-150.0,0.00015907,2]
[399763114,1766659843064,-150.0,0.00015909,2]
[399763115,1766659843074,-150.0,0.00015911,2]
[399763116,1766659843085,-150.0,0.00015919,2]
[399763117,1766659843096,-194.50106884,0.00015923,2]
[399763118,1766659843106,-156.92142475,0.00015923,2]
[399763119,1766659843117,-263.8246358,0.00015923,2]
[399763120,1766659843126,-150.0,0.00015925,2]
[399763122,1766659843136,-150.0,0.00015927,2]
[399763123,1766659843146,-150.0,0.00015929,2]
[399763124,1766659843157,-194.50106884,0.0001594,2]
[399763125,1766659843167,-156.92142475,0.0001594,2]
[399763126,1766659843177,-263.8246358,0.0001594,2]
[399763127,1766659843187,-150.0,0.00015943,2]
[399763128,1766659843197,-500.0,0.00015945,2]
[399763129,1766659843207,-229.0,0.00015945,2]
[399763130,1766659843216,-150.0,0.00015947,2]
[399763131,1766659843226,-150.0,0.00015948,2]
[399763132,1766659843235,-150.0,0.00015951,2]
[399763133,1766659843246,-150.0,0.00015952,2]
[399763135,1766659843257,-194.50106884,0.00015957,2]
[399763136,1766659843267,-156.92142475,0.00015957,2]
[399763137,1766659843278,-263.8246358,0.00015957,2]
[399763138,1766659843288,-150.0,0.00015957,2]
[399763139,1766659843299,-150.0,0.00015967,2]
[399763140,1766659843309,-150.0,0.00015967,2]
[399763141,1766659843320,-150.0,0.00015967,2]
[399763142,1766659843333,-194.50106884,0.00015974,2]
[399763144,1766659843343,-156.92142475,0.00015974,2]
[399763145,1766659843354,-263.8246358,0.00015974,2]
[399763146,1766659843364,-150.0,0.00015983,2]
[399763147,1766659843374,-150.0,0.00015986,2]
[399763148,1766659843384,-150.0,0.00015987,2]
[399763149,1766659843393,-150.0,0.00015987,2]
[399763150,1766659843403,-194.50106884,0.00015991,2]
[399763151,1766659843414,-156.92142475,0.00015991,2]
[399763152,1766659843424,-263.8246358,0.00015991,2]
[399763154,1766659843435,-150.0,0.00015991,2]
[399763155,1766659843445,-150.0,0.00015992,2]
[399763156,1766659843455,-150.0,0.00016005,2]
[399763157,1766659843465,-223.0315306,0.00016006,2]
[399763158,1766659843475,-150.0,0.00016007,2]
[399763159,1766659843485,-194.50106884,0.00016008,2]
[399763160,1766659843495,-156.92142475,0.00016008,2]
[399763161,1766659843505,-263.8246358,0.00016008,2]
[399763162,1766659843515,-150.0,0.00016008,2]
[399763164,1766659843525,-150.0,0.00016016,2]
[399763165,1766659843535,-188.65607915,0.00016016,2]
[399763166,1766659843546,-150.0,0.00016024,2]
[399763167,1766659843555,-194.50106884,0.00016025,2]
[399763168,1766659843565,-156.92142475,0.00016025,2]
[399763169,1766659843576,-263.8246358,0.00016025,2]
[399763170,1766659843585,-150.0,0.00016026,2]
[399763171,1766659843595,-150.0,0.00016027,2]
[399763172,1766659843607,-150.0,0.00016033,2]
[399763174,1766659843618,-150.0,0.0001604,2]
[399763175,1766659843628,-194.50106884,0.00016043,2]
[399763176,1766659843638,-156.92142475,0.00016043,2]
[399763177,1766659843648,-263.8246358,0.00016043,2]
[399763178,1766659843658,-150.0,0.00016043,2]
[399763179,1766659843667,-150.0,0.00016047,2]
[399763180,1766659843677,-194.50106884,0.0001606,2]
[399763181,1766659843689,-156.92142475,0.0001606,2]
[399763182,1766659843699,-263.8246358,0.0001606,2]
[399763184,1766659843709,-150.0,0.0001606,2]
[399763185,1766659843719,-150.0,0.0001606,2]
[399763186,1766659843729,-150.0,0.00016061,2]
[399763187,1766659843739,-183.30928581,0.00016064,2]
[399763188,1766659843749,-150.0,0.00016064,2]
[399763189,1766659843759,-150.0,0.00016067,2]
[399763190,1766659843769,-150.0,0.00016075,2]
[399763191,1766659843779,-194.50106884,0.00016077,2]
[399763192,1766659843789,-156.92142475,0.00016077,2]
[399763194,1766659843798,-263.8246358,0.00016077,2]
[399763195,1766659843807,-150.0,0.0001608,2]
[399763196,1766659843818,-150.0,0.00016087,2]
[399763197,1766659843827,-150.0,0.00016087,2]
[399763198,1766659843837,-150.0,0.00016088,2]
[399763199,1766659843847,-194.50106884,0.00016094,2]
[399763200,1766659843857,-156.92142475,0.00016094,2]
[399763201,1766659843867,-263.8246358,0.00016094,2]
[399763202,1766659843878,-150.0,0.00016099,2]
[399763204,1766659843888,-150.0,0.000161,2]
[399763205,1766659843898,-150.0,0.00016107,2]
[399763206,1766659843908,-194.50106884,0.00016111,2]
[399763207,1766659843918,-156.92142475,0.00016111,2]
[399763208,1766659843929,-263.8246358,0.00016111,2]
[399763209,1766659843940,-150.0,0.00016111,2]
[399763210,1766659843950,-150.0,0.00016113,2]
[399763211,1766659843960,-5528.98,0.00016116,2]
[399763212,1766659843969,-150.0,0.00016116,2]
[399763214,1766659843979,-150.0,0.00016118,2]
[399763215,1766659843988,-150.0,0.00016127,2]
[399763216,1766659843998,-194.50106884,0.00016128,2]
[399763217,1766659844008,-156.92142475,0.00016128,2]
[399763218,1766659844017,-263.8246358,0.00016128,2]
[399763219,1766659844027,-150.0,0.00016137,2]
[399763220,1766659844038,-150.0,0.00016137,2]
[399763221,1766659844048,-150.0,0.00016137,2]
[399763222,1766659844058,-150.0,0.00016137,2]
[399763224,1766659844068,-150.0,0.00016137,2]
[399763225,1766659844078,-194.50106884,0.00016146,2]
[399763226,1766659844087,-156.92142475,0.00016146,2]
[399763227,1766659844097,-263.8246358,0.00016146,2]
[399763228,1766659844106,-150.0,0.00016147,2]
[399763229,1766659844116,-150.0,0.00016156,2]
[399763230,1766659844127,-150.0,0.00016158,2]
[399763231,1766659844136,-150.0,0.00016161,2]
[399763232,1766659844146,-194.50106884,0.00016163,2]
[399763233,1766659844156,-156.92142475,0.00016163,2]
[399763235,1766659844165,-263.8246358,0.00016163,2]
[399763236,1766659844175,-150.0,0.00016163,2]
[399763237,1766659844185,-41325.20904142,0.00016163,2]
[399763238,1766659844194,-353.0,0.00016164,2]
[399763239,1766659844203,-583.07830005,0.00016164,2]
[399763240,1766659844213,-150.0,0.00016167,2]
[399763241,1766659844223,-150.0,0.00016174,2]
[399763242,1766659844233,-150.0,0.00016175,2]
[399763243,1766659844243,-1152.0,0.00016176,2]
[399763245,1766659844253,-194.50106884,0.0001618,2]
[399763246,1766659844263,-156.92142475,0.0001618,2]
[399763247,1766659844273,-263.8246358,0.0001618,2]
[399763248,1766659844282,-19940.00112116,0.00016182,2]
[399763249,1766659844292,-44706.96626385,0.00016182,2]
[399763250,1766659844302,-150.0,0.00016186,2]
[399763251,1766659844312,-150.0,0.00016187,2]
[399763252,1766659844322,-150.0,0.00016187,2]
[399763253,1766659844335,-150.0,0.00016194,2]
[399763255,1766659844345,-194.50106884,0.00016197,2]
[399763256,1766659844355,-156.92142475,0.00016197,2]
[399763257,1766659844364,-263.8246358,0.00016197,2]
[399763258,1766659844374,-150.0,0.00016199,2]
[399763259,1766659844384,-150.0,0.00016207,2]
[399763260,1766659844393,-150.0,0.0001621,2]
[399763261,1766659844403,-150.0,0.00016212,2]
[399763262,1766659844412,-194.50106884,0.00016214,2]
[399763263,1766659844423,-156.92142475,0.00016214,2]
[399763264,1766659844433,-263.8246358,0.00016214,2]
[399763266,1766659844442,-150.0,0.00016214,2]
[399763267,1766659844452,-150.0,0.00016214,2]
[399763268,1766659844462,-3459.0,0.00016223,2]
[399763269,1766659844471,-612.0,0.00016223,2]
[399763270,1766659844481,-1610.0,0.00016223,2]
[399763271,1766659844491,-1327.0,0.00016223,2]
[399763272,1766659844500,-432.0,0.00016223,2]
[399763273,1766659844510,-1271.446,0.00016223,2]
[399763274,1766659844520,-1198.0,0.00016223,2]
[399763276,1766659844529,-912.0,0.00016223,2]
[399763277,1766659844538,-152.0,0.00016223,2]
[399763278,1766659844548,-4807.0,0.00016223,2]
[399763279,1766659844558,-2430.0,0.00016223,2]
[399763280,1766659844567,-6534.0,0.00016223,2]
[399763281,1766659844578,-150.0,0.00016227,2]
[399763282,1766659844588,-194.50106884,0.00016231,2]
[399763283,1766659844598,-156.92142475,0.00016231,2]
[399763284,1766659844609,-263.8246358,0.00016231,2]
[399763286,1766659844621,-150.0,0.00016231,2]
[399763287,1766659844631,-150.0,0.00016234,2]
[399763288,1766659844640,-150.0,0.00016241,2]
[399763289,1766659844651,-150.0,0.00016247,2]
[399763290,1766659844660,-150.0,0.00016248,2]
[399763291,1766659844670,-4609.0,0.00016248,2]
[399763292,1766659844679,-194.50106884,0.00016249,2]
[399763293,1766659844691,-156.92142475,0.00016249,2]
[399763294,1766659844701,-263.8246358,0.00016249,2]
[399763296,1766659844711,-150.0,0.0001625,2]
[399763297,1766659844722,-150.0,0.00016258,2]
[399763298,1766659844731,-150.0,0.00016266,2]
[399763299,1766659844741,-194.50106884,0.00016266,2]
[399763300,1766659844753,-156.92142475,0.00016266,2]
[399763301,1766659844763,-263.8246358,0.00016266,2]
[399763302,1766659844774,-150.0,0.00016267,2]
[399763303,1766659844784,-150.0,0.00016269,2]
[399763305,1766659844794,-150.0,0.00016282,2]
[399763306,1766659844804,-150.0,0.00016283,2]
[399763307,1766659844814,-194.50106884,0.00016283,2]
[399763308,1766659844823,-156.92142475,0.00016283,2]
[399763309,1766659844833,-263.8246358,0.00016283,2]
[399763310,1766659844843,-150.0,0.00016287,2]
[399763311,1766659844854,-150.0,0.00016287,2]
[399763312,1766659844864,-150.0,0.00016288,2]
[399763313,1766659844874,-150.0,0.00016291,2]
[399763315,1766659844884,-194.50106884,0.000163,2]
[399763316,1766659844893,-156.92142475,0.000163,2]
[399763317,1766659844903,-263.8246358,0.000163,2]
[399763318,1766659844912,-150.0,0.00016307,2]
[399763319,1766659844923,-150.0,0.00016307,2]
[399763320,1766659844933,-150.0,0.00016307,2]
[399763321,1766659844943,-194.50106884,0.00016317,2]
[399763322,1766659844953,-156.92142475,0.00016317,2]
[399763323,1766659844963,-263.8246358,0.00016317,2]
[399763324,1766659844973,-150.0,0.00016317,2]
[399763326,1766659844982,-150.0,0.00016322,2]
[399763327,1766659844993,-150.0,0.00016323,2]
[399763328,1766659845002,-150.0,0.00016326,2]
[399763329,1766659845013,-150.0,0.00016327,2]
[399763330,1766659845023,-150.0,0.00016331,2]
[399763331,1766659845033,-796.19226871,0.00016334,2]
[399763332,1766659845043,-194.50106884,0.00016334,2]
[399763333,1766659845053,-156.92142475,0.00016334,2]
[399763334,1766659845063,-263.8246358,0.00016334,2]
[399763336,1766659845072,-150.0,0.00016345,2]
[399763337,1766659845082,-150.0,0.00016347,2]
[399763338,1766659845092,-150.0,0.00016349,2]
[399763339,1766659845102,-194.50106884,0.00016351,2]
[399763340,1766659845111,-156.92142475,0.00016351,2]
[399763341,1766659845122,-263.8246358,0.00016351,2]
[399763342,1766659845132,-150.0,0.00016355,2]
[399763343,1766659845142,-150.0,0.00016363,2]
[399763344,1766659845152,-150.0,0.00016365,2]
[399763346,1766659845162,-150.0,0.00016367,2]
[399763347,1766659845172,-531.21073377,0.00016367,2]
[399763348,1766659845182,-194.50106884,0.00016369,2]
[399763349,1766659845192,-156.92142475,0.00016369,2]
[399763350,1766659845202,-263.8246358,0.00016369,2]
[399763351,1766659845213,-150.0,0.00016369,2]
[399763352,1766659845223,-150.0,0.00016369,2]
[399763353,1766659845233,-150.0,0.0001638,2]
[399763354,1766659845243,-150.0,0.00016382,2]
[399763355,1766659845253,-194.50106884,0.00016386,2]
[399763357,1766659845263,-156.92142475,0.00016386,2]
[399763358,1766659845273,-263.8246358,0.00016386,2]
[399763359,1766659845284,-150.0,0.00016387,2]
[399763360,1766659845295,-150.0,0.00016387,2]
[399763361,1766659845304,-150.0,0.00016395,2]
[399763362,1766659845314,-353.0,0.00016399,2]
[399763363,1766659845324,-228.0,0.000164,2]
[399763364,1766659845335,-319.0,0.000164,2]
[399763365,1766659845345,-182.0,0.000164,2]
[399763367,1766659845355,-184.24951816,0.000164,2]
[399763368,1766659845368,-1000.0,0.000164,2]
[399763369,1766659845389,-150.0,0.00016401,2]
[399763370,1766659845403,-194.50106884,0.00016403,2]
[399763371,1766659845412,-156.92142475,0.00016403,2]
[399763372,1766659845422,-263.8246358,0.00016403,2]
[399763373,1766659845431,-150.0,0.00016404,2]
[399763374,1766659845441,-150.0,0.00016406,2]
[399763376,1766659845451,-150.0,0.00016407,2]
[399763377,1766659845461,-194.50106884,0.0001642,2]
[399763378,1766659845470,-156.92142475,0.0001642,2]
[399763379,1766659845479,-263.8246358,0.0001642,2]
[399763380,1766659845489,-150.0,0.0001642,2]
[399763381,1766659845498,-150.0,0.0001642,2]
[399763382,1766659845508,-150.0,0.0001642,2]
[399763383,1766659845518,-150.0,0.00016427,2]
[399763385,1766659845527,-150.0,0.00016428,2]
[399763387,1766659845537,-194.50106884,0.00016437,2]
[399763390,1766659845547,-156.92142475,0.00016437,2]
[399763392,1766659845556,-263.8246358,0.00016437,2]
[399763394,1766659845567,-500.0,0.00016438,2]
[399763395,1766659845576,-500.0,0.00016438,2]
[399763396,1766659845586,-150.0,0.00016438,2]
[399763397,1766659845595,-500.0,0.00016438,2]
[399763398,1766659845606,-500.0,0.00016438,2]
[399763400,1766659845619,-500.0,0.00016438,2]
[399763402,1766659845629,-500.0,0.00016438,2]
[399763405,1766659845639,-500.0,0.00016438,2]
[399763407,1766659845649,-800.0,0.00016438,2]
[399763409,1766659845661,-809.0,0.00016438,2]
[399763411,1766659845672,-716.0,0.00016438,2]
[399763413,1766659845682,-150.0,0.00016439,2]
[399763415,1766659845691,-164.98,0.0001644,2]
[399763417,1766659845702,-150.0,0.00016446,2]
[399763418,1766659845712,-150.0,0.00016447,2]
[399763419,1766659845722,-150.0,0.00016448,2]
[399763420,1766659845731,-150.0,0.00016452,2]
[399763422,1766659845741,-194.50106884,0.00016454,2]
[399763423,1766659845751,-156.92142475,0.00016454,2]
[399763424,1766659845761,-263.8246358,0.00016454,2]
[399763425,1766659845771,-150.0,0.00016458,2]
[399763426,1766659845781,-353.0,0.0001646,2]
[399763427,1766659845791,-500.0,0.00016465,2]
[399763428,1766659845801,-150.0,0.00016467,2]
[399763429,1766659845811,-150.0,0.00016469,2]
[399763430,1766659845822,-194.50106884,0.00016472,2]
[399763432,1766659845831,-156.92142475,0.00016472,2]
[399763433,1766659845841,-263.8246358,0.00016472,2]
[399763434,1766659845851,-150.0,0.00016472,2]
[399763435,1766659845860,-150.0,0.00016477,2]
[399763436,1766659845870,-150.0,0.00016477,2]
[399763437,1766659845880,-150.0,0.00016487,2]
[399763438,1766659845890,-150.0,0.00016487,2]
[399763439,1766659845900,-194.50106884,0.00016489,2]
[399763440,1766659845909,-156.92142475,0.00016489,2]
[399763442,1766659845919,-263.8246358,0.00016489,2]
[399763443,1766659845930,-150.0,0.00016489,2]
[399763444,1766659845940,-500.0,0.00016493,2]
[399763445,1766659845949,-150.0,0.00016496,2]
[399763446,1766659845959,-150.0,0.00016501,2]
[399763447,1766659845970,-194.50106884,0.00016506,2]
[399763448,1766659845980,-156.92142475,0.00016506,2]
[399763449,1766659845990,-263.8246358,0.00016506,2]
[399763450,1766659846000,-150.0,0.00016507,2]
[399763452,1766659846009,-353.0,0.00016507,2]
[399763453,1766659846018,-150.0,0.00016514,2]
[399763454,1766659846027,-500.0,0.0001652,2]
[399763455,1766659846036,-194.50106884,0.00016523,2]
[399763456,1766659846046,-156.92142475,0.00016523,2]
[399763457,1766659846056,-263.8246358,0.00016523,2]
[399763458,1766659846066,-150.0,0.00016523,2]
[399763459,1766659846076,-150.0,0.00016523,2]
[399763460,1766659846085,-150.0,0.00016525,2]
[399763462,1766659846095,-150.0,0.00016527,2]
[399763463,1766659846105,-150.0,0.00016531,2]
[399763464,1766659846115,-150.0,0.00016533,2]
[399763465,1766659846124,-194.50106884,0.0001654,2]
[399763466,1766659846135,-156.92142475,0.0001654,2]
[399763467,1766659846145,-263.8246358,0.0001654,2]
[399763468,1766659846155,-150.0,0.00016543,2]
[399763469,1766659846164,-150.0,0.00016547,2]
[399763470,1766659846174,-500.0,0.00016548,2]
[399763471,1766659846184,-150.0,0.0001655,2]
[399763473,1766659846193,-150.0,0.00016552,2]
[399763474,1766659846203,-194.50106884,0.00016557,2]
[399763475,1766659846212,-156.92142475,0.00016557,2]
[399763476,1766659846223,-263.8246358,0.00016557,2]
[399763477,1766659846231,-150.0,0.00016562,2]
[399763478,1766659846241,-150.0,0.00016567,2]
[399763479,1766659846250,-150.0,0.00016571,2]
[399763480,1766659846261,-150.0,0.00016572,2]
[399763481,1766659846271,-150.0,0.00016574,2]
[399763483,1766659846280,-194.50106884,0.00016575,2]
[399763484,1766659846291,-156.92142475,0.00016575,2]
[399763485,1766659846302,-263.8246358,0.00016575,2]
[399763486,1766659846311,-150.0,0.00016575,2]
[399763487,1766659846320,-500.0,0.00016575,2]
[399763488,1766659846331,-150.0,0.00016587,2]
[399763489,1766659846340,-150.0,0.00016587,2]
[399763490,1766659846350,-150.0,0.0001659,2]
[399763491,1766659846360,-194.50106884,0.00016592,2]
[399763492,1766659846369,-156.92142475,0.00016592,2]
[399763494,1766659846378,-263.8246358,0.00016592,2]
[399763495,1766659846388,-150.0,0.00016598,2]
[399763496,1766659846398,-150.0,0.000166,2]
[399763497,1766659846408,-500.0,0.00016602,2]
[399763498,1766659846419,-150.0,0.00016607,2]
[399763499,1766659846429,-194.50106884,0.00016609,2]
[399763500,1766659846438,-156.92142475,0.00016609,2]
[399763501,1766659846449,-263.8246358,0.00016609,2]
[399763502,1766659846459,-150.0,0.00016609,2]
[399763504,1766659846469,-150.0,0.00016613,2]
[399763505,1766659846478,-353.0,0.00016616,2]
[399763506,1766659846488,-150.0,0.00016617,2]
[399763507,1766659846498,-150.0,0.00016622,2]
[399763508,1766659846508,-194.50106884,0.00016626,2]
[399763509,1766659846518,-156.92142475,0.00016626,2]
[399763510,1766659846528,-263.8246358,0.00016626,2]
[399763511,1766659846538,-150.0,0.00016626,2]
[399763512,1766659846547,-150.0,0.00016627,2]
[399763514,1766659846556,-150.0,0.00016628,2]
[399763515,1766659846566,-500.0,0.0001663,2]
[399763516,1766659846576,-531.21073376,0.00016634,2]
[399763517,1766659846586,-194.50106884,0.00016643,2]
[399763518,1766659846596,-156.92142475,0.00016643,2]
[399763519,1766659846606,-263.8246358,0.00016643,2]
[399763520,1766659846620,-150.0,0.00016647,2]
[399763521,1766659846629,-150.0,0.00016647,2]
[399763522,1766659846639,-150.0,0.00016647,2]
[399763524,1766659846650,-150.0,0.00016655,2]
[399763525,1766659846659,-500.0,0.00016657,2]
[399763526,1766659846668,-4229.44051462,0.0001666,2]
[399763527,1766659846678,-194.50106884,0.0001666,2]
[399763528,1766659846691,-156.92142475,0.0001666,2]
[399763529,1766659846701,-263.8246358,0.0001666,2]
[399763530,1766659846710,-150.0,0.00016665,2]
[399763531,1766659846719,-150.0,0.00016667,2]
[399763532,1766659846729,-150.0,0.00016671,2]
[399763533,1766659846739,-194.50106884,0.00016677,2]
[399763534,1766659846748,-156.92142475,0.00016677,2]
[399763535,1766659846759,-263.8246358,0.00016677,2]
[399763537,1766659846768,-150.0,0.00016677,2]
[399763538,1766659846778,-150.0,0.00016677,2]
[399763539,1766659846787,-150.0,0.00016684,2]
[399763540,1766659846797,-218.80351721,0.00016685,2]
[399763541,1766659846807,-150.0,0.00016687,2]
[399763542,1766659846816,-150.0,0.00016687,2]
[399763543,1766659846826,-150.0,0.00016691,2]
[399763544,1766659846836,-194.50106884,0.00016695,2]
[399763545,1766659846845,-156.92142475,0.00016695,2]
[399763547,1766659846855,-263.8246358,0.00016695,2]
[399763548,1766659846865,-150.0,0.00016695,2]
[399763549,1766659846875,-150.0,0.00016696,2]
[399763550,1766659846885,-150.0,0.00016703,2]
[399763551,1766659846895,-150.0,0.00016703,2]
[399763552,1766659846905,-150.0,0.00016707,2]
[399763553,1766659846915,-194.50106884,0.00016712,2]
[399763554,1766659846925,-156.92142475,0.00016712,2]
[399763555,1766659846935,-263.8246358,0.00016712,2]
[399763556,1766659846945,-166.63,0.00016712,2]
[399763557,1766659846955,-150.0,0.00016719,2]
[399763558,1766659846965,-150.0,0.00016722,2]
[399763559,1766659846975,-150.0,0.00016727,2]
[399763560,1766659846985,-194.50106884,0.00016729,2]
[399763561,1766659846995,-156.92142475,0.00016729,2]
[399763562,1766659847005,-263.8246358,0.00016729,2]